[Event "Early-Titled-Tuesday-Blitz-May-07-2024"]
[Site "Chess.com"]
[Date "2024.05.07"]
[Round "7"]
[White "Strong_Prodigy"]
[Black "Chesmc"]
[Result "1-0"]
[WhiteElo "2491"]
[BlackElo "2133"]
[TimeControl "180+1"]
[EndTime "9:21:33 PDT"]
[Termination "Strong_Prodigy won by resignation"]

1. d4 {[%clk 0:03:00.9]} 1... d5 {[%clk 0:02:54.9]} 2. c4 {[%clk 0:03:01.1]}
2... c6 {[%clk 0:02:51.9]} 3. Nf3 {[%clk 0:03:01.4]} 3... Nf6 {[%clk 0:02:50.9]}
4. g3 {[%clk 0:03:02]} 4... Bf5 {[%clk 0:02:48.6]} 5. Nc3 {[%clk 0:03:02.3]}
5... e6 {[%clk 0:02:48.8]} 6. Nh4 {[%clk 0:03:02.7]} 6... Bg6 {[%clk 0:02:37.7]}
7. Nxg6 {[%clk 0:03:02]} 7... hxg6 {[%clk 0:02:38.6]} 8. Qd3 {[%clk 0:03:02.5]}
8... Nbd7 {[%clk 0:02:35.4]} 9. Bg2 {[%clk 0:03:03]} 9... Be7 {[%clk 0:02:29.1]}
10. O-O {[%clk 0:03:03.5]} 10... dxc4 {[%clk 0:02:29.1]} 11. Qxc4 {[%clk
0:03:03.6]} 11... Nb6 {[%clk 0:02:29.8]} 12. Qd3 {[%clk 0:03:02.5]} 12... Nbd5
{[%clk 0:02:26.3]} 13. e4 {[%clk 0:02:56.4]} 13... Nxc3 {[%clk 0:02:26.6]} 14.
bxc3 {[%clk 0:02:57.1]} 14... O-O {[%clk 0:02:22.3]} 15. Rb1 {[%clk 0:02:56.5]}
15... Qc8 {[%clk 0:02:10.1]} 16. Bf4 {[%clk 0:02:50.8]} 16... Rd8 {[%clk
0:02:06]} 17. Qc4 {[%clk 0:02:39.3]} 17... Nh5 {[%clk 0:01:39.8]} 18. Be3 {[%clk
0:02:35.1]} 18... Nf6 {[%clk 0:01:32.6]} 19. a4 {[%clk 0:02:28.3]} 19... Ng4
{[%clk 0:01:23.1]} 20. Bf4 {[%clk 0:02:26.4]} 20... g5 {[%clk 0:01:20.4]} 21.
Bc1 {[%clk 0:02:25.4]} 21... Nh6 {[%clk 0:01:13.4]} 22. a5 {[%clk 0:02:19.7]}
22... Rb8 {[%clk 0:01:06.4]} 23. e5 {[%clk 0:02:15]} 23... Nf5 {[%clk
0:00:57.2]} 24. a6 {[%clk 0:01:56.8]} 24... b5 {[%clk 0:00:46.1]} 25. Qxc6
{[%clk 0:01:55.1]} 25... Qxc6 {[%clk 0:00:41.5]} 26. Bxc6 {[%clk 0:01:55.6]}
26... Rdc8 {[%clk 0:00:42]} 27. d5 {[%clk 0:01:26.6]} 27... exd5 {[%clk
0:00:36.3]} 28. Bd7 {[%clk 0:01:26.6]} 28... g6 {[%clk 0:00:22]} 29. Bxc8 {[%clk
0:01:25.3]} 29... Rxc8 {[%clk 0:00:22.9]} 30. Rxb5 {[%clk 0:01:23.9]} 30... Rxc3
{[%clk 0:00:21.4]} 31. Rxd5 {[%clk 0:01:21.6]} 31... Bc5 {[%clk 0:00:14.8]} 32.
Bd2 {[%clk 0:01:18.4]} 32... Rc2 {[%clk 0:00:14.6]} 33. Rc1 {[%clk 0:01:16.3]}
33... Rxc1+ {[%clk 0:00:12.1]} 34. Bxc1 {[%clk 0:01:17.2]} 34... Bb6 {[%clk
0:00:11]} 35. Rd7 {[%clk 0:01:04.3]} 35... Kg7 {[%clk 0:00:10.4]} 36. e6 {[%clk
0:01:02.9]} 36... Kf6 {[%clk 0:00:09.4]} 37. exf7 {[%clk 0:01:02.4]} 37... Ke6
{[%clk 0:00:07.8]} 38. f8=Q {[%clk 0:00:52.5]} 38... Kxd7 {[%clk 0:00:07.7]} 39.
Qf7+ {[%clk 0:00:53]} 39... Kc6 {[%clk 0:00:06.7]} 40. Qxg6+ {[%clk 0:00:52.1]}
40... Nd6 {[%clk 0:00:06.1]} 41. Ba3 {[%clk 0:00:50.9]} 41... Bc5 {[%clk
0:00:07]} 42. Bxc5 {[%clk 0:00:51]} 42... Kxc5 {[%clk 0:00:07.9]} 43. Qxg5+
{[%clk 0:00:51.5]} 43... Kc6 {[%clk 0:00:07.2]} 1-0

[Event "Early-Titled-Tuesday-Blitz-May-07-2024"]
[Site "Chess.com"]
[Date "2024.05.07"]
[Round "7"]
[White "MateusViageiro"]
[Black "JaackCamel"]
[Result "1-0"]
[WhiteElo "2199"]
[BlackElo "2216"]
[TimeControl "180+1"]
[EndTime "9:21:35 PDT"]
[Termination "MateusViageiro won on time"]

1. e4 {[%clk 0:03:00.6]} 1... e6 {[%clk 0:02:59.5]} 2. Qe2 {[%clk 0:02:59.8]}
2... c5 {[%clk 0:02:56.7]} 3. f4 {[%clk 0:02:59.4]} 3... Nc6 {[%clk 0:02:55.4]}
4. Nf3 {[%clk 0:02:58.3]} 4... g6 {[%clk 0:02:48.9]} 5. d3 {[%clk 0:02:54.1]}
5... Bg7 {[%clk 0:02:48.8]} 6. g3 {[%clk 0:02:55]} 6... Nge7 {[%clk 0:02:47.5]}
7. Bg2 {[%clk 0:02:54.8]} 7... O-O {[%clk 0:02:47.2]} 8. c3 {[%clk 0:02:50.6]}
8... b5 {[%clk 0:02:46.4]} 9. Be3 {[%clk 0:02:41]} 9... d6 {[%clk 0:02:42.2]}
10. Nbd2 {[%clk 0:02:39.3]} 10... Bb7 {[%clk 0:02:40.6]} 11. O-O {[%clk
0:02:36.2]} 11... b4 {[%clk 0:02:40.4]} 12. Rac1 {[%clk 0:02:34.1]} 12... a5
{[%clk 0:02:32.2]} 13. g4 {[%clk 0:02:32.4]} 13... f5 {[%clk 0:02:29.5]} 14. Ng5
{[%clk 0:02:30]} 14... Qd7 {[%clk 0:02:21.4]} 15. gxf5 {[%clk 0:02:24.6]} 15...
exf5 {[%clk 0:02:17.9]} 16. Bh3 {[%clk 0:02:22]} 16... Rae8 {[%clk 0:02:03.6]}
17. Nc4 {[%clk 0:02:19.6]} 17... h6 {[%clk 0:01:37]} 18. Nf3 {[%clk 0:02:14.3]}
18... Qc7 {[%clk 0:01:32.7]} 19. cxb4 {[%clk 0:02:02.6]} 19... axb4 {[%clk
0:01:29.3]} 20. Qd2 {[%clk 0:01:56.4]} 20... Kh7 {[%clk 0:01:26.6]} 21. d4
{[%clk 0:01:49.6]} 21... fxe4 {[%clk 0:01:21.7]} 22. Nh4 {[%clk 0:01:48.8]}
22... Nf5 {[%clk 0:01:15.4]} 23. dxc5 {[%clk 0:01:47.7]} 23... Nxh4 {[%clk
0:01:03.2]} 24. cxd6 {[%clk 0:01:46.2]} 24... Qd8 {[%clk 0:00:53.9]} 25. d7
{[%clk 0:01:42.3]} 25... Re7 {[%clk 0:00:49.4]} 26. Bb6 {[%clk 0:01:40.5]} 26...
Qb8 {[%clk 0:00:41.3]} 27. Rcd1 {[%clk 0:01:33.5]} 27... e3 {[%clk 0:00:36.7]}
28. Qe2 {[%clk 0:01:27.2]} 28... Rxf4 {[%clk 0:00:25.6]} 29. d8=Q {[%clk
0:01:18.7]} 29... Nxd8 {[%clk 0:00:20.3]} 30. Rxd8 {[%clk 0:01:17.6]} 30...
Rxf1+ {[%clk 0:00:16]} 31. Qxf1 {[%clk 0:01:16.8]} 31... Nf3+ {[%clk 0:00:10.2]}
32. Qxf3 {[%clk 0:01:15.1]} 32... Qxd8 {[%clk 0:00:10.2]} 33. Bxd8 {[%clk
0:01:14.5]} 33... Bxf3 {[%clk 0:00:08.9]} 34. Bxe7 {[%clk 0:01:13]} 34... e2
{[%clk 0:00:09.3]} 35. Kf2 {[%clk 0:01:12.4]} 35... Bd4+ {[%clk 0:00:07.7]} 36.
Ke1 {[%clk 0:01:10.9]} 36... b3 {[%clk 0:00:05.8]} 37. axb3 {[%clk 0:01:09.8]}
37... Bg1 {[%clk 0:00:03.8]} 38. Nd2 {[%clk 0:01:02.8]} 38... Bh5 {[%clk
0:00:01.7]} 39. Bd6 {[%clk 0:00:57.5]} 39... Bd4 {[%clk 0:00:00.8]} 40. Be6
{[%clk 0:00:48.4]} 1-0

[Event "Early-Titled-Tuesday-Blitz-May-07-2024"]
[Site "Chess.com"]
[Date "2024.05.07"]
[Round "7"]
[White "LeoWin2012"]
[Black "RobRam"]
[Result "0-1"]
[WhiteElo "2313"]
[BlackElo "2529"]
[TimeControl "180+1"]
[EndTime "9:21:36 PDT"]
[Termination "RobRam won by checkmate"]

1. e4 {[%clk 0:03:00.9]} 1... d6 {[%clk 0:03:00.9]} 2. d4 {[%clk 0:02:53.4]}
2... g6 {[%clk 0:03:01.3]} 3. Nc3 {[%clk 0:02:34.6]} 3... Bg7 {[%clk 0:03:01]}
4. Be3 {[%clk 0:02:34.8]} 4... a6 {[%clk 0:03:00.7]} 5. Qd2 {[%clk 0:02:34.6]}
5... Nd7 {[%clk 0:03:01.3]} 6. O-O-O {[%clk 0:02:34.6]} 6... b5 {[%clk
0:03:01.4]} 7. h4 {[%clk 0:02:34.7]} 7... h5 {[%clk 0:02:58.7]} 8. Nh3 {[%clk
0:02:34.7]} 8... Bb7 {[%clk 0:02:58.3]} 9. Ng5 {[%clk 0:02:34.9]} 9... Rc8
{[%clk 0:02:58.4]} 10. f3 {[%clk 0:02:32.6]} 10... c5 {[%clk 0:02:57.1]} 11. Kb1
{[%clk 0:02:30]} 11... c4 {[%clk 0:02:50.2]} 12. a3 {[%clk 0:02:14.5]} 12... Qa5
{[%clk 0:02:38.5]} 13. Bf2 {[%clk 0:02:00]} 13... b4 {[%clk 0:02:32.5]} 14. axb4
{[%clk 0:01:53.5]} 14... Qxb4 {[%clk 0:02:32]} 15. Qf4 {[%clk 0:01:53.6]} 15...
Nh6 {[%clk 0:02:21.5]} 16. g4 {[%clk 0:01:43]} 16... Rb8 {[%clk 0:02:06.4]} 17.
Na2 {[%clk 0:01:35.8]} 17... Qa4 {[%clk 0:01:43.8]} 18. gxh5 {[%clk 0:01:17.6]}
18... gxh5 {[%clk 0:01:27.6]} 19. Rg1 {[%clk 0:01:16.8]} 19... e5 {[%clk
0:01:12.9]} 20. Qd2 {[%clk 0:01:05.2]} 20... Bf6 {[%clk 0:01:01.8]} 21. dxe5
{[%clk 0:00:55]} 21... Bxe5 {[%clk 0:00:55]} 22. Bd4 {[%clk 0:00:53.2]} 22...
Bc6 {[%clk 0:00:29.8]} 23. Bxe5 {[%clk 0:00:48.1]} 23... dxe5 {[%clk 0:00:29.8]}
24. Qc3 {[%clk 0:00:40.7]} 24... Bb5 {[%clk 0:00:22.2]} 25. Bh3 {[%clk
0:00:23.6]} 25... Rb7 {[%clk 0:00:18.1]} 26. Bxd7+ {[%clk 0:00:23.4]} 26... Bxd7
{[%clk 0:00:14.7]} 27. Qxe5+ {[%clk 0:00:23.4]} 27... Kd8 {[%clk 0:00:11.8]} 28.
Qxh8+ {[%clk 0:00:23]} 28... Kc7 {[%clk 0:00:12.1]} 29. Qe5+ {[%clk 0:00:21.1]}
29... Kc8 {[%clk 0:00:11.3]} 30. Nh7 {[%clk 0:00:12.5]} 30... Qb5 {[%clk
0:00:10.9]} 31. Nf6 {[%clk 0:00:11.2]} 31... Qxe5 {[%clk 0:00:09.5]} 32. Nxd7
{[%clk 0:00:10.5]} 32... Qxb2# {[%clk 0:00:09.5]} 0-1

[Event "Early-Titled-Tuesday-Blitz-May-07-2024"]
[Site "Chess.com"]
[Date "2024.05.07"]
[Round "7"]
[White "Aleksandar-Topalov"]
[Black "dzhumagaliev"]
[Result "0-1"]
[WhiteElo "2394"]
[BlackElo "2843"]
[TimeControl "180+1"]
[EndTime "9:21:39 PDT"]
[Termination "dzhumagaliev won on time"]

1. b3 {[%clk 0:03:00.9]} 1... a5 {[%clk 0:02:59.3]} 2. a3 {[%clk 0:02:59.2]}
2... c5 {[%clk 0:02:58.6]} 3. c4 {[%clk 0:02:57.9]} 3... b6 {[%clk 0:02:58.3]}
4. Bb2 {[%clk 0:02:57.8]} 4... Bb7 {[%clk 0:02:58.9]} 5. Nf3 {[%clk 0:02:58]}
5... Nf6 {[%clk 0:02:59]} 6. g3 {[%clk 0:02:57.8]} 6... d5 {[%clk 0:02:57.5]} 7.
cxd5 {[%clk 0:02:56.3]} 7... Nxd5 {[%clk 0:02:58.2]} 8. Bg2 {[%clk 0:02:54.5]}
8... e6 {[%clk 0:02:58.1]} 9. O-O {[%clk 0:02:54.5]} 9... Nd7 {[%clk 0:02:57.3]}
10. d3 {[%clk 0:02:54]} 10... N7f6 {[%clk 0:02:56.4]} 11. Nbd2 {[%clk
0:02:53.5]} 11... Be7 {[%clk 0:02:56.5]} 12. Nc4 {[%clk 0:02:41.8]} 12... b5
{[%clk 0:02:56.1]} 13. Ncd2 {[%clk 0:02:39]} 13... O-O {[%clk 0:02:56.2]} 14. a4
{[%clk 0:02:37.5]} 14... b4 {[%clk 0:02:55.7]} 15. Nc4 {[%clk 0:02:35.3]} 15...
Nd7 {[%clk 0:02:55.4]} 16. e4 {[%clk 0:02:29.2]} 16... N5b6 {[%clk 0:02:55.9]}
17. Qe2 {[%clk 0:02:26]} 17... Qc7 {[%clk 0:02:49.6]} 18. Nfd2 {[%clk
0:02:23.9]} 18... Bf6 {[%clk 0:02:44.4]} 19. e5 {[%clk 0:02:23.5]} 19... Be7
{[%clk 0:02:40.2]} 20. f4 {[%clk 0:02:21]} 20... Bxg2 {[%clk 0:02:38.5]} 21.
Qxg2 {[%clk 0:02:18.2]} 21... Rad8 {[%clk 0:02:27.3]} 22. Ne4 {[%clk 0:02:17.6]}
22... f5 {[%clk 0:02:20.9]} 23. Ned6 {[%clk 0:02:11.9]} 23... Nd5 {[%clk
0:02:16.8]} 24. Rfe1 {[%clk 0:01:56.4]} 24... N7b6 {[%clk 0:02:14.3]} 25. Nxa5
{[%clk 0:01:47]} 25... Bxd6 {[%clk 0:02:09]} 26. exd6 {[%clk 0:01:46.9]} 26...
Rxd6 {[%clk 0:02:09.5]} 27. Nc4 {[%clk 0:01:44.1]} 27... Nxc4 {[%clk 0:02:04.5]}
28. dxc4 {[%clk 0:01:44.2]} 28... Nc3 {[%clk 0:02:04.9]} 29. a5 {[%clk 0:01:31]}
29... Rfd8 {[%clk 0:01:52.4]} 30. a6 {[%clk 0:01:30.6]} 30... Qa7 {[%clk
0:01:52.4]} 31. Qb7 {[%clk 0:01:27.6]} 31... R8d7 {[%clk 0:01:44.4]} 32. Qc8+
{[%clk 0:01:26.3]} 32... Kf7 {[%clk 0:01:43.4]} 33. Ra5 {[%clk 0:01:06]} 33...
Rc7 {[%clk 0:01:26.9]} 34. Qh8 {[%clk 0:01:01.6]} 34... h6 {[%clk 0:01:16]} 35.
Re3 {[%clk 0:00:47]} 35... Rxa6 {[%clk 0:01:09.6]} 36. Rxa6 {[%clk 0:00:46.5]}
36... Qxa6 {[%clk 0:01:10.5]} 37. Qd8 {[%clk 0:00:41.5]} 37... Qc6 {[%clk
0:01:01.5]} 38. Bxc3 {[%clk 0:00:09.5]} 38... bxc3 {[%clk 0:01:00.3]} 39. Rxc3
{[%clk 0:00:09.2]} 39... Rd7 {[%clk 0:01:00.7]} 40. Qb8 {[%clk 0:00:06.6]} 40...
Qe4 {[%clk 0:00:51.1]} 0-1

[Event "Early-Titled-Tuesday-Blitz-May-07-2024"]
[Site "Chess.com"]
[Date "2024.05.07"]
[Round "7"]
[White "IlanSchnaider"]
[Black "IMGC"]
[Result "1-0"]
[WhiteElo "2729"]
[BlackElo "2511"]
[TimeControl "180+1"]
[EndTime "9:21:43 PDT"]
[Termination "IlanSchnaider won by resignation"]

1. Nf3 {[%clk 0:03:00.9]} 1... Nf6 {[%clk 0:02:56.7]} 2. g3 {[%clk 0:02:59.9]}
2... d5 {[%clk 0:02:55.4]} 3. Bg2 {[%clk 0:02:59.8]} 3... c6 {[%clk 0:02:55.3]}
4. O-O {[%clk 0:02:57.1]} 4... Bg4 {[%clk 0:02:55.8]} 5. Ne5 {[%clk 0:02:56.7]}
5... Bf5 {[%clk 0:02:55.5]} 6. c4 {[%clk 0:02:56.1]} 6... e6 {[%clk 0:02:55.7]}
7. d4 {[%clk 0:02:55.5]} 7... Nbd7 {[%clk 0:02:53.9]} 8. Bf4 {[%clk 0:02:54.5]}
8... Nxe5 {[%clk 0:02:49.1]} 9. Bxe5 {[%clk 0:02:49.4]} 9... Be7 {[%clk
0:02:38.1]} 10. Nd2 {[%clk 0:02:39.5]} 10... O-O {[%clk 0:02:36.7]} 11. Re1
{[%clk 0:02:19.7]} 11... Qb6 {[%clk 0:02:02.2]} 12. Qc1 {[%clk 0:02:05.4]} 12...
Nd7 {[%clk 0:01:29]} 13. c5 {[%clk 0:01:54.9]} 13... Qa5 {[%clk 0:01:23.7]} 14.
Bf4 {[%clk 0:01:37.3]} 14... e5 {[%clk 0:01:20.6]} 15. Nb3 {[%clk 0:01:36.9]}
15... Qc7 {[%clk 0:01:15.2]} 16. dxe5 {[%clk 0:01:36]} 16... Nxe5 {[%clk
0:01:12.6]} 17. Nd4 {[%clk 0:01:08.6]} 17... Bg6 {[%clk 0:01:06.5]} 18. e4
{[%clk 0:00:28.1]} 18... dxe4 {[%clk 0:01:04.3]} 19. Bxe4 {[%clk 0:00:28.6]}
19... Bxe4 {[%clk 0:01:03.7]} 20. Rxe4 {[%clk 0:00:29.1]} 20... Bf6 {[%clk
0:01:04]} 21. Qe3 {[%clk 0:00:28]} 21... Rfe8 {[%clk 0:00:19.7]} 22. Re1 {[%clk
0:00:25.2]} 22... Rad8 {[%clk 0:00:08]} 23. Bxe5 {[%clk 0:00:25]} 23... Bxe5
{[%clk 0:00:08.9]} 24. Rxe5 {[%clk 0:00:24.9]} 24... Rxe5 {[%clk 0:00:07.9]} 25.
Qxe5 {[%clk 0:00:25.5]} 25... Qxe5 {[%clk 0:00:05.9]} 26. Rxe5 {[%clk
0:00:26.4]} 26... Kf8 {[%clk 0:00:06.3]} 27. Nb3 {[%clk 0:00:23.8]} 27... f6
{[%clk 0:00:03.3]} 28. Re2 {[%clk 0:00:23.1]} 28... Kf7 {[%clk 0:00:04.2]} 29.
Kg2 {[%clk 0:00:23.1]} 29... Rd3 {[%clk 0:00:03.5]} 30. Na5 {[%clk 0:00:23.4]}
30... Rd7 {[%clk 0:00:02.4]} 31. Re3 {[%clk 0:00:23.2]} 31... Rc7 {[%clk
0:00:02]} 32. Rb3 {[%clk 0:00:22.3]} 32... b6 {[%clk 0:00:02.9]} 33. cxb6 {[%clk
0:00:22.6]} 33... axb6 {[%clk 0:00:03.8]} 34. Rxb6 {[%clk 0:00:23.4]} 34... c5
{[%clk 0:00:04.6]} 35. Rc6 {[%clk 0:00:24]} 35... Ra7 {[%clk 0:00:04.4]} 36.
Rxc5 {[%clk 0:00:24.4]} 1-0

[Event "Early-Titled-Tuesday-Blitz-May-07-2024"]
[Site "Chess.com"]
[Date "2024.05.07"]
[Round "7"]
[White "ahmedkandiliii"]
[Black "NastyaHn"]
[Result "1-0"]
[WhiteElo "2647"]
[BlackElo "2479"]
[TimeControl "180+1"]
[EndTime "9:21:43 PDT"]
[Termination "ahmedkandiliii won on time"]

1. Nf3 {[%clk 0:02:53.7]} 1... Nf6 {[%clk 0:02:59.4]} 2. g3 {[%clk 0:02:54.6]}
2... e6 {[%clk 0:02:59.7]} 3. Bg2 {[%clk 0:02:55.5]} 3... d5 {[%clk 0:03:00.3]}
4. O-O {[%clk 0:02:56.4]} 4... Be7 {[%clk 0:03:00.8]} 5. d4 {[%clk 0:02:56.8]}
5... O-O {[%clk 0:03:01.4]} 6. c4 {[%clk 0:02:56.4]} 6... dxc4 {[%clk
0:03:01.8]} 7. Qc2 {[%clk 0:02:53.2]} 7... a6 {[%clk 0:03:01.9]} 8. a4 {[%clk
0:02:50.9]} 8... Bd7 {[%clk 0:03:01.7]} 9. Qxc4 {[%clk 0:02:50.1]} 9... Bc6
{[%clk 0:03:01.9]} 10. Nc3 {[%clk 0:02:47.4]} 10... Nbd7 {[%clk 0:03:01.5]} 11.
Qd3 {[%clk 0:02:42.9]} 11... Bb4 {[%clk 0:02:53.7]} 12. Bg5 {[%clk 0:02:42]}
12... h6 {[%clk 0:02:52.9]} 13. Bf4 {[%clk 0:02:41.6]} 13... a5 {[%clk
0:02:46.9]} 14. Rac1 {[%clk 0:02:23.6]} 14... Nb6 {[%clk 0:02:35.4]} 15. Nb5
{[%clk 0:02:21.7]} 15... Nbd5 {[%clk 0:02:28.7]} 16. Be5 {[%clk 0:02:18.8]}
16... Rc8 {[%clk 0:02:22.3]} 17. Na7 {[%clk 0:02:18.1]} 17... Ra8 {[%clk
0:01:53.6]} 18. Nxc6 {[%clk 0:02:16.8]} 18... bxc6 {[%clk 0:01:54.3]} 19. Rxc6
{[%clk 0:02:17.7]} 19... Bd6 {[%clk 0:01:49.8]} 20. Qc4 {[%clk 0:01:41.9]} 20...
Nb4 {[%clk 0:01:35.4]} 21. Bxd6 {[%clk 0:01:22]} 21... cxd6 {[%clk 0:01:31.9]}
22. Rc7 {[%clk 0:01:22.2]} 22... d5 {[%clk 0:01:22.9]} 23. Qc5 {[%clk 0:01:10]}
23... Ne4 {[%clk 0:01:15.9]} 24. Qe7 {[%clk 0:01:08.2]} 24... Qxe7 {[%clk
0:01:03.7]} 25. Rxe7 {[%clk 0:01:08.9]} 25... Rfc8 {[%clk 0:01:03.7]} 26. Ne5
{[%clk 0:01:05]} 26... Nd6 {[%clk 0:00:57.2]} 27. Rd7 {[%clk 0:01:02.4]} 27...
Ra6 {[%clk 0:00:54.5]} 28. Bh3 {[%clk 0:00:52.7]} 28... Rc2 {[%clk 0:00:46.3]}
29. e3 {[%clk 0:00:47.1]} 29... Rxb2 {[%clk 0:00:28.8]} 30. Rd8+ {[%clk
0:00:45.8]} 30... Kh7 {[%clk 0:00:28.3]} 31. Rc1 {[%clk 0:00:42.9]} 31... Rc2
{[%clk 0:00:27.3]} 32. Rxc2 {[%clk 0:00:42.9]} 32... Nxc2 {[%clk 0:00:27.4]} 33.
Nd7 {[%clk 0:00:43.1]} 33... Nb7 {[%clk 0:00:11.2]} 34. Rb8 {[%clk 0:00:38]}
34... Nd6 {[%clk 0:00:07.7]} 35. Bf1 {[%clk 0:00:36.2]} 35... Nb4 {[%clk
0:00:07]} 36. Bxa6 {[%clk 0:00:34.6]} 36... Nxa6 {[%clk 0:00:01.7]} 37. Rb6
{[%clk 0:00:33.6]} 1-0

[Event "Early-Titled-Tuesday-Blitz-May-07-2024"]
[Site "Chess.com"]
[Date "2024.05.07"]
[Round "7"]
[White "IriBu"]
[Black "andrzej"]
[Result "0-1"]
[WhiteElo "2575"]
[BlackElo "2470"]
[TimeControl "180+1"]
[EndTime "9:21:45 PDT"]
[Termination "andrzej won by checkmate"]

1. e4 {[%clk 0:03:00.9]} 1... e5 {[%clk 0:03:00]} 2. Nf3 {[%clk 0:02:59.8]} 2...
Nf6 {[%clk 0:03:00.7]} 3. Nc3 {[%clk 0:02:59]} 3... Bb4 {[%clk 0:03:00.6]} 4.
Bd3 {[%clk 0:02:45.4]} 4... O-O {[%clk 0:02:57.5]} 5. O-O {[%clk 0:02:45.3]}
5... d6 {[%clk 0:02:53.6]} 6. a3 {[%clk 0:02:42.3]} 6... Ba5 {[%clk 0:02:53.7]}
7. b4 {[%clk 0:02:42.3]} 7... Bb6 {[%clk 0:02:53.8]} 8. Na4 {[%clk 0:02:42.6]}
8... d5 {[%clk 0:02:54]} 9. Nxb6 {[%clk 0:02:37.5]} 9... axb6 {[%clk 0:02:53.9]}
10. Nxe5 {[%clk 0:02:36.8]} 10... dxe4 {[%clk 0:02:51.8]} 11. Be2 {[%clk
0:02:30.8]} 11... Qd4 {[%clk 0:02:51.3]} 12. Nc4 {[%clk 0:02:23.6]} 12... Qxa1
{[%clk 0:02:49.3]} 13. c3 {[%clk 0:02:23.6]} 13... Be6 {[%clk 0:02:43.7]} 14.
Qc2 {[%clk 0:02:07.8]} 14... b5 {[%clk 0:02:06.5]} 15. Bb2 {[%clk 0:02:04.9]}
15... Qa2 {[%clk 0:01:53.5]} 16. Ra1 {[%clk 0:02:00.9]} 16... Qxa1+ {[%clk
0:01:53]} 17. Bxa1 {[%clk 0:02:01.2]} 17... bxc4 {[%clk 0:01:53.4]} 18. a4
{[%clk 0:02:00.3]} 18... b5 {[%clk 0:01:50]} 19. a5 {[%clk 0:02:00]} 19... Nc6
{[%clk 0:01:49.5]} 20. f3 {[%clk 0:01:56.6]} 20... Bf5 {[%clk 0:01:43.7]} 21.
Qc1 {[%clk 0:01:52]} 21... Ne5 {[%clk 0:01:38.4]} 22. fxe4 {[%clk 0:01:48.3]}
22... Bxe4 {[%clk 0:01:35.9]} 23. Bb2 {[%clk 0:01:42.4]} 23... Nd3 {[%clk
0:01:35.1]} 24. Qa1 {[%clk 0:01:34.2]} 24... Ra6 {[%clk 0:01:32.2]} 25. h3
{[%clk 0:01:26.7]} 25... Re8 {[%clk 0:01:32.1]} 26. Bxd3 {[%clk 0:01:23]} 26...
Bxd3 {[%clk 0:01:31.2]} 27. Kh2 {[%clk 0:01:23.2]} 27... Ne4 {[%clk 0:01:29.3]}
28. Qg1 {[%clk 0:01:19.4]} 28... Nxd2 {[%clk 0:01:15.9]} 29. Qd4 {[%clk
0:01:10.5]} 29... Nf1+ {[%clk 0:01:15.3]} 30. Kg1 {[%clk 0:01:09.3]} 30... Rd6
{[%clk 0:01:07.9]} 31. Qc5 {[%clk 0:01:03.9]} 31... Rg6 {[%clk 0:00:32]} 32.
Qxb5 {[%clk 0:00:58.7]} 32... c6 {[%clk 0:00:32.3]} 33. Qc5 {[%clk 0:00:51.3]}
33... Ng3 {[%clk 0:00:29.6]} 34. Qf2 {[%clk 0:00:20.1]} 34... Re2 {[%clk
0:00:28.1]} 35. Qb6 {[%clk 0:00:19.6]} 35... Re1+ {[%clk 0:00:27.2]} 36. Kf2
{[%clk 0:00:20]} 36... Rf1+ {[%clk 0:00:24.8]} 37. Ke3 {[%clk 0:00:20.3]} 37...
Re6+ {[%clk 0:00:20.1]} 38. Kd4 {[%clk 0:00:19.2]} 38... Ne2+ {[%clk 0:00:18.2]}
39. Kc5 {[%clk 0:00:15.1]} 39... Rf5# {[%clk 0:00:18.6]} 0-1

[Event "Early-Titled-Tuesday-Blitz-May-07-2024"]
[Site "Chess.com"]
[Date "2024.05.07"]
[Round "7"]
[White "KnightDuta"]
[Black "RantomOpening"]
[Result "1-0"]
[WhiteElo "2726"]
[BlackElo "2508"]
[TimeControl "180+1"]
[EndTime "9:21:49 PDT"]
[Termination "KnightDuta won by checkmate"]

1. e4 {[%clk 0:03:00.9]} 1... c5 {[%clk 0:01:31.9]} 2. Nf3 {[%clk 0:03:00]} 2...
e6 {[%clk 0:01:31.9]} 3. d4 {[%clk 0:02:59.8]} 3... cxd4 {[%clk 0:01:32.8]} 4.
Nxd4 {[%clk 0:03:00.6]} 4... Nf6 {[%clk 0:01:33.4]} 5. Nc3 {[%clk 0:02:57.7]}
5... Nc6 {[%clk 0:01:33.8]} 6. Ndb5 {[%clk 0:02:57.7]} 6... Bc5 {[%clk
0:01:33.6]} 7. Nd6+ {[%clk 0:02:58]} 7... Ke7 {[%clk 0:01:33.6]} 8. Bf4 {[%clk
0:02:58.7]} 8... e5 {[%clk 0:01:34.1]} 9. Nf5+ {[%clk 0:02:59.1]} 9... Kf8
{[%clk 0:01:34.8]} 10. Bg5 {[%clk 0:02:59.9]} 10... d6 {[%clk 0:01:35.5]} 11.
Ne3 {[%clk 0:02:59.6]} 11... h6 {[%clk 0:01:34.6]} 12. Bxf6 {[%clk 0:02:59.9]}
12... Qxf6 {[%clk 0:01:34.7]} 13. Ncd5 {[%clk 0:03:00.3]} 13... Qh4 {[%clk
0:01:34.2]} 14. Bd3 {[%clk 0:02:51.9]} 14... Be6 {[%clk 0:01:28.3]} 15. O-O
{[%clk 0:02:51]} 15... Rc8 {[%clk 0:01:28.3]} 16. c3 {[%clk 0:02:50.7]} 16... g6
{[%clk 0:01:28.2]} 17. b4 {[%clk 0:02:50.2]} 17... Bxe3 {[%clk 0:01:27.1]} 18.
Nxe3 {[%clk 0:02:50.4]} 18... Kg7 {[%clk 0:01:27.2]} 19. Bc2 {[%clk 0:02:33.2]}
19... Rhd8 {[%clk 0:01:25.7]} 20. Qd3 {[%clk 0:02:29.6]} 20... Ne7 {[%clk
0:01:23.6]} 21. Bb3 {[%clk 0:02:29.5]} 21... Qf6 {[%clk 0:01:15.6]} 22. Rfd1
{[%clk 0:02:16]} 22... a6 {[%clk 0:01:12.6]} 23. Rd2 {[%clk 0:02:15.5]} 23...
Bxb3 {[%clk 0:01:10.3]} 24. axb3 {[%clk 0:02:16.4]} 24... Qe6 {[%clk 0:01:08.8]}
25. c4 {[%clk 0:02:12]} 25... Nc6 {[%clk 0:01:07.7]} 26. Nc2 {[%clk 0:02:12.5]}
26... b5 {[%clk 0:00:58.3]} 27. Rxa6 {[%clk 0:01:11.3]} 27... Nb8 {[%clk
0:00:36.5]} 28. Rb6 {[%clk 0:01:09.3]} 28... bxc4 {[%clk 0:00:35.9]} 29. bxc4
{[%clk 0:01:08.2]} 29... Qxc4 {[%clk 0:00:35.8]} 30. Qxc4 {[%clk 0:01:06.6]}
30... Rxc4 {[%clk 0:00:36.7]} 31. f3 {[%clk 0:01:07.4]} 31... Rdc8 {[%clk
0:00:22.4]} 32. Ne3 {[%clk 0:01:06.5]} 32... Rc3 {[%clk 0:00:22]} 33. Kf2 {[%clk
0:01:06.7]} 33... Nc6 {[%clk 0:00:17.9]} 34. Rxd6 {[%clk 0:00:47]} 34... Nd4
{[%clk 0:00:18.3]} 35. Rd7 {[%clk 0:00:46.9]} 35... R8c7 {[%clk 0:00:10.4]} 36.
Rd8 {[%clk 0:00:33.9]} 36... Rb3 {[%clk 0:00:10]} 37. Rbb8 {[%clk 0:00:33.8]}
37... Rb2+ {[%clk 0:00:09.7]} 38. Kg3 {[%clk 0:00:34.5]} 38... h5 {[%clk
0:00:09.9]} 39. Rg8+ {[%clk 0:00:32.5]} 39... Kf6 {[%clk 0:00:09.2]} 40. Nd5+
{[%clk 0:00:32.5]} 40... Kg5 {[%clk 0:00:09.4]} 41. h4+ {[%clk 0:00:32.8]} 41...
Kh6 {[%clk 0:00:09.6]} 42. Rh8+ {[%clk 0:00:33.7]} 42... Kg7 {[%clk 0:00:09.6]}
43. Rbg8# {[%clk 0:00:34.6]} 1-0